{"text_format":"3","workbook":"xlsx","n_sheets":11,"sheets":["1 кл..","2 кл.."," 3 кл..","4 кл..","5 кл..","6 кл..  ","7 кл..","8 кл..","9 кл..","10а (унив.)","11 (унив.)"],"read":"whole","date_system":"1900"}

{"sheet":"1 кл..","index":0,"n_rows":23,"n_cols":8,"rows_kept":23,"merged":[[0,1,0,7],[1,1,1,7],[2,1,2,7],[3,1,3,7],[4,1,6,1],[4,2,6,2],[4,3,4,6],[4,7,6,7],[6,3,6,6],[7,1,8,1],[9,1,10,1],[15,1,16,1],[19,1,19,2],[20,1,20,2],[22,1,22,2]]}
[null,"УЧЕБНЫЙ ПЛАН"]
[null,"Муниципального бюджетного общеобразовательного учреждения \n \"Средняя общеобразовательная школа №175\" Советского района города Казани"]
[null,"на 2019/2020 учебный год "]
[null,"для 1 классов"]
[null,"Предметные области","Учебные предметы","классы",{"$nulls":3},"Всего часов"]
[{"$nulls":3},"1 класс                (2019-2020)","2 класс                (2020-2021)","3 класс                (2021-2022)","4 класс                (2022-2023)"]
[{"$nulls":3},"количество часов в неделю"]
[null,"Русский язык и литературное чтение ","Русский язык",4,5,5,5,{"$f":"SUM(D8:G8)","v":19}]
[null,null,"Литературное чтение",2,3,3,3,{"$f":"SUM(D9:G9)","v":11}]
[null,"Родной язык и литературное чтение на родном языке","Родной язык",2,2,2,2,{"$f":"SUM(D10:G10)","v":8}]
[null,null,"Литературное чтение на родном языке",1,1,1,1,{"$f":"SUM(D11:G11)","v":4}]
[null,"Иностранный язык","Инострнаный язык (английский)",null,2,2,2,6]
[null,"Математика и информатика","Математика ",4,4,4,4,16]
[null,"Обществознание и естествознание","Окружающий мир ",2,2,2,2,8]
[null,"Основы религиозных культур и светской этики","Основы религиозных культур и светской этики",{"$nulls":3},1,{"$f":"SUM(D15:G15)","v":1}]
[null,"Искусство","Музыка",1,1,1,1,4]
[null,null,"Изобразительное искусство",1,1,1,1,4]
[null,"Технология","Технология",1,1,1,1,4]
[null,"Физическая культура ","Физическая культура ",3,3,3,3,12]
[null,"ИТОГО:",null,{"$f":"SUM(D8:D19)","v":21},{"$f":"SUM(E8:E19)","v":25},{"$f":"SUM(F8:F19)","v":25},{"$f":"SUM(G8:G19)","v":26},97]
[null,"Часть, формируемая участниками образовательных отношений",null,null,1,1,null,2]
[null,"Математика и информатика","Математика ",null,1,1,null,2]
[null,"Предельно допустимая недельная нагрузка ",null,{"$f":"SUM(D20,D21)","v":21},26,26,{"$f":"SUM(G20,G21)","v":26},99]

{"sheet":"2 кл..","index":1,"n_rows":23,"n_cols":8,"rows_kept":23,"merged":[[0,1,0,7],[1,1,1,7],[2,1,2,7],[3,1,3,7],[4,1,6,1],[4,2,6,2],[4,3,4,6],[4,7,6,7],[6,3,6,6],[7,1,8,1],[9,1,10,1],[15,1,16,1],[19,1,19,2],[20,1,20,2],[22,1,22,2]]}
[null,"УЧЕБНЫЙ ПЛАН"]
[null,"Муниципального бюджетного общеобразовательного учреждения \n \"Средняя общеобразовательная школа №175\" Советского района города Казани"]
[null,"на 2019/2020 учебный год "]
[null,"для 2 классов"]
[null,"Предметные области","Учебные предметы","классы",{"$nulls":3},"Всего часов"]
[{"$nulls":3},"1 класс                (2018-2019)","2 класс                (2019-2020)","3 класс                (2020-2021)","4 класс                (2021-2022)"]
[{"$nulls":3},"количество часов в неделю"]
[null,"Русский язык и литературное чтение ","Русский язык",4,5,5,5,{"$f":"SUM(D8:G8)","v":19}]
[null,null,"Литературное чтение",2,3,3,3,{"$f":"SUM(D9:G9)","v":11}]
[null,"Родной язык и литературное чтение на родном языке","Родной язык",2,2,2,2,{"$f":"SUM(D10:G10)","v":8}]
[null,null,"Литературное чтение на родном языке",1,1,1,1,{"$f":"SUM(D11:G11)","v":4}]
[null,"Иностранный язык","Инострнаный язык (английский)",null,2,2,2,6]
[null,"Математика и информатика","Математика ",4,4,4,4,16]
[null,"Обществознание и естествознание","Окружающий мир ",2,2,2,2,8]
[null,"Основы религиозных культур и светской этики","Основы религиозных культур и светской этики",{"$nulls":3},1,{"$f":"SUM(D15:G15)","v":1}]
[null,"Искусство","Музыка",1,1,1,1,4]
[null,null,"Изобразительное искусство",1,1,1,1,4]
[null,"Технология","Технология",1,1,1,1,4]
[null,"Физическая культура ","Физическая культура ",3,3,3,3,12]
[null,"ИТОГО:",null,{"$f":"SUM(D8:D19)","v":21},{"$f":"SUM(E8:E19)","v":25},{"$f":"SUM(F8:F19)","v":25},{"$f":"SUM(G8:G19)","v":26},97]
[null,"Часть, формируемая участниками образовательных отношений",null,null,1,1,null,2]
[null,"Математика и информатика","Математика ",null,1,1,null,2]
[null,"Предельно допустимая недельная нагрузка ",null,{"$f":"SUM(D20,D21)","v":21},26,26,{"$f":"SUM(G20,G21)","v":26},99]

{"sheet":" 3 кл..","index":2,"n_rows":25,"n_cols":8,"rows_kept":25,"merged":[[0,1,0,7],[1,1,1,7],[2,1,2,7],[3,1,3,7],[5,1,7,1],[5,2,7,2],[5,3,5,6],[5,7,7,7],[7,3,7,6],[8,1,9,1],[10,1,11,1],[16,1,17,1],[20,1,20,2],[21,1,21,2],[24,1,24,2]]}
[null,"УЧЕБНЫЙ ПЛАН"]
[null,"Муниципального бюджетного общеобразовательного учреждения \n \"Средняя общеобразовательная школа №175\" Советского района города Казани"]
[null,"на 2019/2020 учебный год "]
[null,"для 3 классов "]
[]
[null,"Предметные области","Учебные предметы","классы",{"$nulls":3},"Всего часов"]
[{"$nulls":3},"1 класс                (2017-2018)","2 класс                (2018-2019)","3 класс                (2019-2020)","4 класс                (2020-2021)"]
[{"$nulls":3},"количество часов в неделю"]
[null,"Русский язык и литературное чтение ","Русский язык",4,5,5,5,{"$f":"SUM(D9:G9)","v":19}]
[null,null,"Литературное чтение",2,3,3,3,{"$f":"SUM(D10:G10)","v":11}]
[null,"Родной язык и литературное чтение на родном языке","Родной язык",2,2,2,2,8]
[null,null,"Литературное чтение на родном языке",1,1,1,1,4]
[null,"Иностранный язык","Инострнаный язык (английский)",null,2,2,2,6]
[null,"Математика и информатика","Математика ",4,4,4,4,16]
[null,"Обществознание и естествознание","Окружающий мир ",2,2,2,2,8]
[null,"Основы религиозных культур и светской этики","Основы религиозных культур и светской этики",{"$nulls":3},1,{"$f":"SUM(D16:G16)","v":1}]
[null,"Искусство","Музыка",1,1,1,1,4]
[null,null,"Изобразительное искусство",1,1,1,1,4]
[null,"Технология","Технология",1,1,1,1,4]
[null,"Физическая культура ","Физическая культура ",3,3,3,3,12]
[null,"ИТОГО:",null,{"$f":"SUM(D9:D20)","v":21},{"$f":"SUM(E9:E20)","v":25},{"$f":"SUM(F9:F20)","v":25},{"$f":"SUM(G9:G20)","v":26},97]
[null,"Часть, формируемая участниками образовательных отношений",null,null,1,1,null,2]
[null,"Русский язык и литературное чтение ","Русский язык",null,1,null,null,1]
[null,"Математика и информатика","Математика ",null,null,1,null,1]
[null,"Предельно допустимая недельная нагрузка ",null,{"$f":"SUM(D21,D22)","v":21},26,26,{"$f":"SUM(G21,G22)","v":26},99]

{"sheet":"4 кл..","index":3,"n_rows":23,"n_cols":8,"rows_kept":23,"merged":[[0,1,0,7],[1,1,1,7],[2,1,2,7],[3,1,3,7],[4,1,6,1],[4,2,6,2],[4,3,4,6],[4,7,6,7],[6,3,6,6],[7,1,8,1],[9,1,10,1],[15,1,16,1],[19,1,19,2],[20,1,20,2],[22,1,22,2]]}
[null,"УЧЕБНЫЙ ПЛАН"]
[null,"Муниципального бюджетного общеобразовательного учреждения \n \"Средняя общеобразовательная школа №175\" Советского района города Казани"]
[null,"на 2019/2020 учебный год "]
[null,"для 4 классов "]
[null,"Предметные области","Учебные предметы","классы",{"$nulls":3},"Всего часов"]
[{"$nulls":3},"1 класс                (2016-2017)","2 класс                (2017-2018)","3 класс                (2018-2019)","4 класс                (2019-2020)"]
[{"$nulls":3},"количество часов в неделю"]
[null,"Русский язык и литературное чтение ","Русский язык",4,5,5,5,{"$f":"SUM(D8:G8)","v":19}]
[null,null,"Литературное чтение",2,3,3,3,{"$f":"SUM(D9:G9)","v":11}]
[null,"Родной язык и литературное чтение на родном языке","Родной язык",2,2,2,2,8]
[null,null,"Литературное чтение на родном языке",1,1,1,1,4]
[null,"Иностранный язык","Инострнаный язык (английский)",null,2,2,2,6]
[null,"Математика и информатика","Математика ",4,4,4,4,16]
[null,"Обществознание и естествознание","Окружающий мир ",2,2,2,2,8]
[null,"Основы религиозных культур и светской этики","Основы религиозных культур и светской этики",{"$nulls":3},1,{"$f":"SUM(D15:G15)","v":1}]
[null,"Искусство","Музыка",1,1,1,1,4]
[null,null,"Изобразительное искусство",1,1,1,1,4]
[null,"Технология","Технология",1,1,1,1,4]
[null,"Физическая культура ","Физическая культура ",3,3,3,3,12]
[null,"ИТОГО:",null,{"$f":"SUM(D8:D19)","v":21},{"$f":"SUM(E8:E19)","v":25},{"$f":"SUM(F8:F19)","v":25},{"$f":"SUM(G8:G19)","v":26},97]
[null,"Часть, формируемая участниками образовательных отношений",null,null,1,1,null,2]
[null,"Русский язык и литературное чтение ","Русский язык",null,1,1,null,2]
[null,"Предельно допустимая недельная нагрузка ",null,{"$f":"SUM(D20,D21)","v":21},26,26,{"$f":"SUM(G20,G21)","v":26},99]

{"sheet":"5 кл..","index":4,"n_rows":37,"n_cols":9,"rows_kept":37,"merged":[[0,1,0,8],[1,1,1,8],[2,1,2,8],[3,1,3,8],[5,1,7,1],[5,2,7,2],[5,3,5,7],[5,8,7,8],[7,3,7,7],[8,1,9,1],[10,1,11,1],[12,1,13,1],[14,1,17,1],[18,1,20,1],[21,1,23,1],[24,1,25,1],[27,1,28,1],[29,1,29,2],[30,1,30,2],[36,1,36,2]]}
[null,"УЧЕБНЫЙ ПЛАН"]
[null,"Муниципального бюджетного общеобразовательного учреждения \n\"Средняя общеобразовательная школа №175\" Советского района города Казани"]
[null,"на 2019/2020 учебный год "]
[null,"для 5 классов "]
[]
[null,"Предметные области","Учебные предметы","классы",{"$nulls":4},"Всего часов"]
[{"$nulls":3},"5 класс                (2019-2020)","6 класс                (2020-2021)","7 класс                (2021-2022)","8 класс                (2022-2023)","9 класс                (2023-2024)"]
[{"$nulls":3},"количество часов в неделю"]
[null,"Русский язык и литература","Русский язык",5,6,4,3,3,{"$f":"SUM(D9:H9)","v":21}]
[null,null,"Литература",3,3,2,2,3,{"$f":"SUM(D10:H10)","v":13}]
[null,"Родной язык и родная литература","Родной язык",2,2,2,2,2,{"$f":"SUM(D11:H11)","v":10}]
[null,null,"Родная литература",1,1,1,1,1,{"$f":"SUM(D12:H12)","v":5}]
[null,"Иностранные языки","Иностранный язык (английский)",3,3,3,3,3,15]
[null,null,"Второй иностранный язык (немецкий)",1,1,1,1,1,5]
[null,"Математика и информатика","Математика ",5,5,{"$nulls":3},10]
[null,null,"Алгебра",null,null,3,3,3,9]
[null,null,"Геометрия",null,null,2,2,2,6]
[null,null,"Информатика",null,null,1,1,1,3]
[null,"Общественно-научные предметы","История ",2,2,2,2,2,10]
[null,null,"Обществознание",null,1,1,1,1,4]
[null,null,"География",1,1,2,2,2,8]
[null,"Естественно-научные предметы","Физика",null,null,2,2,3,{"$f":"SUM(F22:H22)","v":7}]
[null,null,"Химия",{"$nulls":3},2,2,{"$f":"SUM(G23:H23)","v":4}]
[null,null,"Биология",1,1,1,2,2,7]
[null,"Искусство","Музыка",1,1,1,1,null,4]
[null,null,"Изобразительное искусство",1,1,1,null,null,3]
[null,"Технология","Технология",2,2,2,1,null,7]
[null,"Физическая культура и основы безопасности жизнедеятельности","Физическая культура ",2,2,2,2,2,10]
[null,null,"ОБЖ",{"$nulls":3},1,1,2]
[null,"ИТОГО:",null,{"$f":"SUM(D9:D29)","v":30},{"$f":"SUM(E9:E29)","v":32},{"$f":"SUM(F9:F29)","v":33},{"$f":"SUM(G9:G29)","v":34},{"$f":"SUM(H9:H29)","v":34},{"$f":"SUM(D30:H30)","v":163}]
[null,"Часть, формируемая участниками образовательных отношений",null,2,1,2,2,2,9]
[null,"Математика и информатика","Алгебра",{"$nulls":3},1,1,{"$f":"SUM(F32:H32)","v":2}]
[null,"Естественно-научные предметы","Биология",null,null,1,null,null,1]
[null,"Общественно-научные предметы","Обществознание",1,{"$nulls":4},1]
[null,"Основы духовно-нравственной культуры народов России","Основы духовно-нравственной \nкультуры народов России",1,{"$nulls":4},1]
[null,"Физическая культура и основы безопасности жизнедеятельности","Физическая культура ",null,1,1,1,1,4]
[null,"Предельно допустимая недельная нагрузка ",null,32,33,35,{"$f":"SUM(G30+G31)","v":36},36,172]

{"sheet":"6 кл..  ","index":5,"n_rows":38,"n_cols":9,"rows_kept":38,"merged":[[0,1,0,8],[1,1,1,8],[2,1,2,8],[3,1,3,8],[5,1,7,1],[5,2,7,2],[5,3,5,7],[5,8,7,8],[7,3,7,7],[8,1,9,1],[10,1,11,1],[12,1,13,1],[14,1,17,1],[18,1,20,1],[21,1,23,1],[24,1,25,1],[27,1,28,1],[29,1,29,2],[30,1,30,2],[31,1,32,1],[37,1,37,2]]}
[null,"УЧЕБНЫЙ ПЛАН"]
[null,"Муниципального бюджетного общеобразовательного учреждения \n\"Средняя общеобразовательная школа №175\" Советского района города Казани"]
[null,"на 2019/2020 учебный год "]
[null,"для 6 классов "]
[]
[null,"Предметные области","Учебные предметы","классы",{"$nulls":4},"Всего часов"]
[{"$nulls":3},"5 класс                (2018-2019)","6 класс                (2019-2020)","7 класс                (2020-2021)","8 класс                (2021-2022)","9 класс                (2022-2023)"]
[{"$nulls":3},"количество часов в неделю"]
[null,"Русский язык и литература","Русский язык",5,6,4,3,3,{"$f":"SUM(D9:H9)","v":21}]
[null,null,"Литература",3,3,2,2,3,{"$f":"SUM(D10:H10)","v":13}]
[null,"Родной язык и родная литература","Родной язык",2,2,2,2,2,{"$f":"SUM(D11:H11)","v":10}]
[null,null,"Родная литература",1,1,1,1,1,{"$f":"SUM(D12:H12)","v":5}]
[null,"Иностранные языки","Иностранный язык (английский)",3,3,3,3,3,15]
[null,null,"Второй иностранный язык (немецкий)",null,null,1,1,1,3]
[null,"Математика и информатика","Математика ",5,5,{"$nulls":3},10]
[null,null,"Алгебра",null,null,3,3,3,9]
[null,null,"Геометрия",null,null,2,2,2,6]
[null,null,"Информатика",null,null,1,1,1,3]
[null,"Общественно-научные предметы","История",2,2,2,2,2,10]
[null,null,"Обществознание",null,1,1,1,1,5]
[null,null,"География",1,1,2,2,2,8]
[null,"Естественно-научные предметы","Физика",null,null,2,2,3,{"$f":"SUM(F22:H22)","v":7}]
[null,null,"Химия",{"$nulls":3},2,2,{"$f":"SUM(G23:H23)","v":4}]
[null,null,"Биология",1,1,1,2,2,7]
[null,"Искусство","Музыка",1,1,1,1,null,4]
[null,null,"Изобразительное искусство",1,1,1,null,null,3]
[null,"Технология","Технология",2,2,2,1,null,7]
[null,"Физическая культура и основы безопасности жизнедеятельности","Физическая культура ",3,3,2,2,2,12]
[null,null,"ОБЖ",{"$nulls":3},1,1,2]
[null,"ИТОГО:",null,{"$f":"SUM(D9:D29)","v":30},{"$f":"SUM(E9:E29)","v":32},{"$f":"SUM(F9:F29)","v":33},{"$f":"SUM(G9:G29)","v":34},{"$f":"SUM(H9:H29)","v":34},{"$f":"SUM(D30:H30)","v":163}]
[null,"Часть, формируемая участниками образовательных отношений",null,2,1,2,2,2,9]
[null,"Математика и информатика","Математика ",null,1,{"$nulls":3},1]
[null,null,"Алгебра",{"$nulls":3},1,1,{"$f":"SUM(F33:H33)","v":2}]
[null,"Естественно-научные предметы","Биология",null,null,1,null,null,1]
[null,"Общественно-научные предметы","Обществознание",1,{"$nulls":4},1]
[null,"Основы духовно-нравственной культуры народов России","Основы духовно-нравственной \nкультуры народов России",1,{"$nulls":4},1]
[null,"Физическая культура и основы безопасности жизнедеятельности","Физическая культура ",null,null,1,1,1,3]
[null,"Предельно допустимая недельная нагрузка ",null,{"$f":"SUM(D30+D31)","v":32},33,35,36,36,172]

{"sheet":"7 кл..","index":6,"n_rows":38,"n_cols":9,"rows_kept":38,"merged":[[0,1,0,8],[1,1,1,8],[2,1,2,8],[3,1,3,8],[5,1,7,1],[5,2,7,2],[5,3,5,7],[5,8,7,8],[7,3,7,7],[8,1,9,1],[10,1,11,1],[12,1,13,1],[14,1,17,1],[18,1,20,1],[21,1,23,1],[24,1,25,1],[27,1,28,1],[29,1,29,2],[30,1,30,2],[31,1,32,1],[37,1,37,2]]}
[null,"УЧЕБНЫЙ ПЛАН"]
[null,"Муниципального бюджетного общеобразовательного учреждения \n\"Средняя общеобразовательная школа №175\" Советского района города Казани"]
[null,"на 2019/2020 учебный год "]
[null,"для 7 классов "]
[]
[null,"Предметные области","Учебные предметы","классы",{"$nulls":4},"Всего часов"]
[{"$nulls":3},"5 класс                (2017-2018)","6 класс                (2018-2019)","7 класс                (2019-2020)","8 класс                (2020-2021)","9 класс                (2021-2022)"]
[{"$nulls":3},"количество часов в неделю"]
[null,"Русский язык и литература","Русский язык",5,6,4,3,3,{"$f":"SUM(D9:H9)","v":21}]
[null,null,"Литература",3,3,2,2,3,{"$f":"SUM(D10:H10)","v":13}]
[null,"Родной язык и родная литература","Родной язык",2,2,2,2,2,{"$f":"SUM(D11:H11)","v":10}]
[null,null,"Родная литература",1,1,1,1,1,{"$f":"SUM(D12:H12)","v":5}]
[null,"Иностранные языки","Иностранный язык (английский)",3,3,3,3,3,15]
[null,null,"Второй иностранный язык (немецкий)",null,null,1,1,1,3]
[null,"Математика и информатика","Математика ",5,5,{"$nulls":3},10]
[null,null,"Алгебра",null,null,3,3,3,9]
[null,null,"Геометрия",null,null,2,2,2,6]
[null,null,"Информатика",null,null,1,1,1,3]
[null,"Общественно-научные предметы","История ",2,2,2,2,2,10]
[null,null,"Обществознание",null,1,1,1,1,5]
[null,null,"География",1,1,2,2,2,8]
[null,"Естественно-научные предметы","Физика",null,null,2,2,3,{"$f":"SUM(F22:H22)","v":7}]
[null,null,"Химия",{"$nulls":3},2,2,{"$f":"SUM(G23:H23)","v":4}]
[null,null,"Биология",1,1,1,2,2,7]
[null,"Искусство","Музыка",1,1,1,1,null,4]
[null,null,"Изобразительное искусство",1,1,1,null,null,3]
[null,"Технология","Технология",2,2,2,1,null,7]
[null,"Физическая культура и основы безопасности жизнедеятельности","Физическая культура ",3,3,2,2,2,12]
[null,null,"ОБЖ",{"$nulls":3},1,1,2]
[null,"ИТОГО:",null,{"$f":"SUM(D9:D29)","v":30},{"$f":"SUM(E9:E29)","v":32},{"$f":"SUM(F9:F29)","v":33},{"$f":"SUM(G9:G29)","v":34},{"$f":"SUM(H9:H29)","v":34},{"$f":"SUM(D30:H30)","v":163}]
[null,"Часть, формируемая участниками образовательных отношений",null,2,1,2,2,2,9]
[null,"Математика и информатика","Математика ",null,1,{"$nulls":3},1]
[null,null,"Алгебра",{"$nulls":3},1,1,{"$f":"SUM(F33:H33)","v":2}]
[null,"Естественно-научные предметы","Биология",null,null,1,null,null,1]
[null,"Общественно-научные предметы","Обществознание",1,{"$nulls":4},1]
[null,"Основы духовно-нравственной культуры народов России","Основы духовно-нравственной \nкультуры народов России",1,{"$nulls":4},1]
[null,"Физическая культура и основы безопасности жизнедеятельности","Физическая культура",null,null,1,1,1,3]
[null,"Предельно допустимая недельная нагрузка ",null,{"$f":"SUM(D30+D31)","v":32},33,35,36,36,172]

{"sheet":"8 кл..","index":7,"n_rows":37,"n_cols":9,"rows_kept":37,"merged":[[0,1,0,8],[1,1,1,8],[2,1,2,8],[3,1,3,8],[5,1,7,1],[5,2,7,2],[5,3,5,7],[5,8,7,8],[7,3,7,7],[8,1,9,1],[10,1,11,1],[12,1,13,1],[14,1,17,1],[18,1,20,1],[21,1,23,1],[24,1,25,1],[27,1,28,1],[29,1,29,2],[30,1,30,2],[31,1,32,1],[36,1,36,2]]}
[null,"УЧЕБНЫЙ ПЛАН"]
[null,"Муниципального бюджетного общеобразовательного учреждения \n\"Средняя общеобразовательная школа №175\" Советского района города Казани"]
[null,"на 2019/2020 учебный год "]
[null,"для 8 классов"]
[]
[null,"Предметные области","Учебные предметы","классы",{"$nulls":4},"Всего часов"]
[{"$nulls":3},"5 класс                (2016-2017)","6 класс                (2017-2018)","7 класс                (2018-2019)","8 класс                (2019-2020)","9 класс                (2019-2020)"]
[{"$nulls":3},"количество часов в неделю"]
[null,"Русский язык и литература","Русский язык",5,6,4,3,3,{"$f":"SUM(D9:H9)","v":21}]
[null,null,"Литература",3,3,2,2,3,{"$f":"SUM(D10:H10)","v":13}]
[null,"Родной язык и родная литература","Родной язык",2,2,2,2,2,10]
[null,null,"Родная литература",1,1,1,1,1,5]
[null,"Иностранные языки","Иностранный язык (английский)",3,3,3,3,3,15]
[null,null,"Второй иностранный язык (немецкий)",{"$nulls":3},1,1,2]
[null,"Математика и информатика","Математика ",5,5,{"$nulls":3},10]
[null,null,"Алгебра",null,null,3,3,3,9]
[null,null,"Геометрия",null,null,2,2,2,6]
[null,null,"Информатика",null,null,1,1,1,3]
[null,"Общественно-научные предметы","История ",2,2,2,2,2,10]
[null,null,"Обществознание",null,1,1,1,1,4]
[null,null,"География",1,1,2,2,2,8]
[null,"Естественно-научные предметы","Физика",null,null,2,2,3,{"$f":"SUM(F22:H22)","v":7}]
[null,null,"Химия",{"$nulls":3},2,2,{"$f":"SUM(G23:H23)","v":4}]
[null,null,"Биология",1,1,1,2,2,7]
[null,"Искусство","Музыка",1,1,1,1,null,4]
[null,null,"Изобразительное искусство",1,1,1,null,null,3]
[null,"Технология","Технология",2,2,2,1,null,7]
[null,"Физическая культура и основы безопасности жизнедеятельности","Физическая культура ",3,3,3,2,2,13]
[null,null,"ОБЖ",{"$nulls":3},1,1,2]
[null,"ИТОГО:",null,{"$f":"SUM(D9:D29)","v":30},{"$f":"SUM(E9:E29)","v":32},{"$f":"SUM(F9:F29)","v":33},{"$f":"SUM(G9:G29)","v":34},{"$f":"SUM(H9:H29)","v":34},163]
[null,"Часть, формируемая участниками образовательных отношений",null,2,1,2,2,2,9]
[null,"Математика и информатика","Математика ",1,1,{"$nulls":3},{"$f":"SUM(D32:H32)","v":2}]
[null,null,"Алгебра",null,null,1,1,1,{"$f":"SUM(F33:H33)","v":3}]
[null,"Естественно-научные предметы","Биология",null,null,1,null,null,{"$f":"SUM(D34:H34)","v":1}]
[null,"Русский язык и литература","Русский язык",1,{"$nulls":4},1]
[null,"Физическая культура и основы безопасности жизнедеятельности","Физическая культура ",{"$nulls":3},1,1,2]
[null,"Предельно допустимая недельная нагрузка ",null,{"$f":"SUM(D30+D31)","v":32},33,35,36,36,{"$f":"SUM(I30+I31)","v":172}]

{"sheet":"9 кл..","index":8,"n_rows":36,"n_cols":9,"rows_kept":36,"merged":[[0,1,0,8],[1,1,1,8],[2,1,2,8],[3,1,3,8],[5,1,7,1],[5,2,7,2],[5,3,5,7],[5,8,7,8],[7,3,7,7],[8,1,9,1],[10,1,11,1],[12,1,13,1],[14,1,17,1],[18,1,20,1],[21,1,23,1],[24,1,25,1],[27,1,28,1],[29,1,29,2],[30,1,30,2],[31,1,32,1],[35,1,35,2]]}
[null,"УЧЕБНЫЙ ПЛАН"]
[null,"Муниципального бюджетного общеобразовательного учреждения \n\"Средняя общеобразовательная школа №175\" Советского района города Казани"]
[null,"на 2019/2020 учебный год "]
[null,"для 9 классов"]
[]
[null,"Предметные области","Учебные предметы","классы",{"$nulls":4},"Всего часов"]
[{"$nulls":3},"5 класс                (2015-2016)","6 класс                (2016-2017)","7 класс                (2017-2018)","8 класс                (2018-2019)","9 класс                (2019-2020)"]
[{"$nulls":3},"количество часов в неделю"]
[null,"Русский язык и литература","Русский язык",5,6,4,3,3,{"$f":"SUM(D9:H9)","v":21}]
[null,null,"Литература",3,3,2,2,3,{"$f":"SUM(D10:H10)","v":13}]
[null,"Родной язык и родная литература","Родной язык",2,2,2,2,2,10]
[null,null,"Родная литература",1,1,1,1,1,5]
[null,"Иностранные языки","Иностранный язык (английский)",3,3,3,3,3,15]
[null,null,"Второй иностранный язык (немецкий)",{"$nulls":4},1,1]
[null,"Математика и информатика","Математика ",5,5,{"$nulls":3},10]
[null,null,"Алгебра",null,null,3,3,3,9]
[null,null,"Геометрия",null,null,2,2,2,6]
[null,null,"Информатика",null,null,1,1,1,3]
[null,"Общественно-научные предметы","История",2,2,2,2,2,10]
[null,null,"Обществознание",1,1,1,1,1,5]
[null,null,"География",1,1,2,2,2,8]
[null,"Естественно-научные предметы","Физика",null,null,2,2,3,{"$f":"SUM(F22:H22)","v":7}]
[null,null,"Химия",{"$nulls":3},2,2,{"$f":"SUM(G23:H23)","v":4}]
[null,null,"Биология",1,1,1,2,2,7]
[null,"Искусство","Музыка",1,1,1,1,null,4]
[null,null,"Изобразительное искусство",1,1,1,null,null,3]
[null,"Технология","Технология",2,2,2,1,null,7]
[null,"Физическая культура и основы безопасности жизнедеятельности","Физическая культура ",3,3,3,3,2,14]
[null,null,"ОБЖ",{"$nulls":3},1,1,2]
[null,"ИТОГО:",null,30,{"$f":"SUM(E9:E29)","v":32},{"$f":"SUM(F9:F29)","v":33},{"$f":"SUM(G9:G29)","v":34},34,163]
[null,"Часть, формируемая участниками образовательных отношений",null,2,1,2,2,2,9]
[null,"Математика и информатика","Математика ",1,1,{"$nulls":3},{"$f":"SUM(D32:H32)","v":2}]
[null,null,"Алгебра",null,null,1,1,1,{"$f":"SUM(F33:H33)","v":3}]
[null,"Русский язык и литература","Русский язык",1,null,1,1,null,3]
[null,"Физическая культура и основы безопасности жизнедеятельности","Физическая культура",{"$nulls":4},1,1]
[null,"Предельно допустимая недельная нагрузка ",null,{"$f":"SUM(D30+D31)","v":32},33,35,36,36,{"$f":"SUM(I30+I31)","v":172}]

{"sheet":"10а (унив.)","index":9,"n_rows":39,"n_cols":6,"rows_kept":39,"merged":[[1,1,1,8],[2,1,2,8],[3,1,3,8],[4,1,4,8],[6,2,6,7],[7,0,22,0],[7,3,7,4],[7,5,7,7],[8,3,8,4],[8,5,8,7],[9,3,9,4],[9,5,9,7],[10,3,10,4],[10,5,10,7],[11,3,11,4],[11,5,11,7],[12,3,12,4],[12,5,12,7],[13,3,13,4],[13,5,13,7],[14,3,14,4],[14,5,14,7],[15,3,15,4],[15,5,15,7],[16,3,16,4],[16,5,16,7],[17,3,17,4],[17,5,17,7],[18,3,18,4],[18,5,18,7],[19,3,19,4],[19,5,19,7],[20,3,20,4],[20,5,20,7],[21,3,21,4],[21,5,21,7],[22,3,22,4],[22,5,22,7],[23,0,23,1],[23,3,23,4],[23,5,23,7],[24,0,25,0],[24,3,24,4],[24,5,24,7],[25,3,25,4],[25,5,25,7],[26,0,32,0],[26,3,26,4],[26,5,26,7],[27,3,27,4],[27,5,27,7],[28,3,28,4],[28,5,28,7],[29,3,29,4],[29,5,29,7],[30,3,30,4],[30,5,30,7],[31,3,31,4],[31,5,31,7],[32,3,32,4],[32,5,32,7],[33,0,37,0],[33,3,33,4],[33,5,33,7],[34,3,34,4],[34,5,34,7],[35,3,35,4],[35,5,35,7],[36,3,36,4],[36,5,36,7],[37,3,37,4],[37,5,37,7],[38,0,38,1],[38,3,38,4],[38,5,38,7]]}
[]
[null,"УЧЕБНЫЙ ПЛАН"]
[null,"Муниципального бюджетного общеобразовательного учреждения \n\"Средняя общеобразовательная школа №175\" Советского района города Казани"]
[null,"на 2019/2020 учебный год "]
[null,"для 10а класса универсального профиля"]
[]
["Компоненты\nучебного \nплана","Учебные предметы","Число недельных часов за два года обучения"]
["Обязательные предметы на базовом уровне",null,"2019/2020           (10 класс)","2020/2021                      (11 класс)",null,"Итого"]
[null,"Русский язык",1,1,null,{"$f":"SUM(C9:E9)","v":2}]
[null,"Литература",3,3,null,{"$f":"SUM(C10:E10)","v":6}]
[null,"Иностранный язык (английский)",3,3,null,6]
[null,"Математика",4,4,null,8]
[null,"Информатика и ИКТ",1,1,null,2]
[null,"История",2,2,null,4]
[null,"Обществознание (включая экономику и право)",2,2,null,4]
[null,"География",1,1,null,2]
[null,"Физика",2,2,null,4]
[null,"Астрономия",null,1,null,1]
[null,"Химия",1,1,null,2]
[null,"Биология",1,1,null,{"$f":"SUM(C20:E20)","v":2}]
[null,"Технология",1,1,null,{"$f":"SUM(C21:E21)","v":2}]
[null,"Основы безопасности жизнедеятельности",1,1,null,{"$f":"SUM(C22:E22)","v":2}]
[null,"Физическая культура",3,3,null,6]
["ИТОГО:",null,{"$f":"SUM(C9:C23)","v":26},{"$f":"SUM(D9:E23)","v":27},null,{"$f":"SUM(F9:H23)","v":53}]
["Региональный \n(национально-\nрегиональный) компонент","Родной язык",1,1,null,2]
[null,"Родная литература",1,1,null,2]
["Компонент \nобразовательного \nучреждения:\nучебные предметы","Русский язык",1,1,null,{"$f":"SUM(C27:E27)","v":2}]
[null,"Математика",1,1,null,{"$f":"SUM(C28:E28)","v":2}]
[null,"Физика",1,1,null,2]
[null,"Химия",1,1,null,{"$f":"SUM(C30:E30)","v":2}]
[null,"Биология",1,1,null,{"$f":"SUM(C31:E31)","v":2}]
[null,"Информатика и ИКТ",1,1,null,{"$f":"SUM(C32:E32)","v":2}]
[null,"Иностранный язык (английский)",1,null,null,1]
["Компонент \nобразовательного \nучреждения: элективные курсы","«Углубленное изучение некоторых вопросов математики»",1,null,null,{"$f":"SUM(C34:E34)","v":1}]
[null,"«Финансовая математика»",null,1,null,1]
[null,"«Азбука журналистики»",0.5,null,null,0.5]
[null,"«От текста - к творчеству»",0.5,null,null,0.5]
[null,"«Решение сложных и нестандартных задач по математике»",null,1,null,1]
["Предельно допустимая недельная нагрузка:",null,37,37,null,74]

{"sheet":"11 (унив.)","index":10,"n_rows":39,"n_cols":6,"rows_kept":39,"merged":[[1,0,1,8],[2,0,2,8],[3,0,3,8],[4,0,4,8],[6,2,6,7],[7,0,22,0],[7,3,7,4],[7,5,7,7],[8,3,8,4],[8,5,8,7],[9,3,9,4],[9,5,9,7],[10,3,10,4],[10,5,10,7],[11,3,11,4],[11,5,11,7],[12,3,12,4],[12,5,12,7],[13,3,13,4],[13,5,13,7],[14,3,14,4],[14,5,14,7],[15,3,15,4],[15,5,15,7],[16,3,16,4],[16,5,16,7],[17,3,17,4],[17,5,17,7],[18,3,18,4],[18,5,18,7],[19,3,19,4],[19,5,19,7],[20,3,20,4],[20,5,20,7],[21,3,21,4],[21,5,21,7],[22,3,22,4],[22,5,22,7],[23,0,23,1],[23,3,23,4],[23,5,23,7],[24,0,25,0],[24,3,24,4],[24,5,24,7],[25,3,25,4],[25,5,25,7],[26,0,32,0],[26,3,26,4],[26,5,26,7],[27,3,27,4],[27,5,27,7],[28,3,28,4],[28,5,28,7],[29,3,29,4],[29,5,29,7],[30,3,30,4],[30,5,30,7],[31,3,31,4],[31,5,31,7],[32,3,32,4],[32,5,32,7],[33,0,37,0],[33,3,33,4],[33,5,33,7],[34,3,34,4],[34,5,34,7],[35,3,35,4],[35,5,35,7],[36,3,36,4],[36,5,36,7],[37,3,37,4],[37,5,37,7],[38,0,38,1],[38,3,38,4],[38,5,38,7]]}
[]
["УЧЕБНЫЙ ПЛАН"]
["Муниципального бюджетного общеобразовательного учреждения \n\"Средняя общеобразовательная школа №175\" Советского района города Казани"]
["на 2019/2020 учебный год "]
["для 11а класса универсального профиля"]
[]
["Компоненты\nучебного \nплана","Учебные предметы","Число недельных часов за два года обучения"]
["Обязательные предметы на базовом уровне",null,"2018/2019           (10 класс)","2019/2020                      (11 класс)",null,"Итого"]
[null,"Русский язык",1,1,null,{"$f":"SUM(C9:E9)","v":2}]
[null,"Литература",3,3,null,{"$f":"SUM(C10:E10)","v":6}]
[null,"Иностранный язык (английский)",3,3,null,6]
[null,"Математика",4,4,null,8]
[null,"Информатика и ИКТ",1,1,null,2]
[null,"История",2,2,null,4]
[null,"Обществознание \n(включая экономику и право)",2,2,null,4]
[null,"География",1,1,null,2]
[null,"Физика",2,2,null,4]
[null,"Астрономия",null,1,null,1]
[null,"Химия",1,1,null,2]
[null,"Биология",1,1,null,{"$f":"SUM(C20:E20)","v":2}]
[null,"Технология",1,1,null,{"$f":"SUM(C21:E21)","v":2}]
[null,"Основы безопасности \nжизнедеятельности",1,1,null,{"$f":"SUM(C22:E22)","v":2}]
[null,"Физическая культура",3,3,null,6]
["ИТОГО:",null,{"$f":"SUM(C9:C23)","v":26},{"$f":"SUM(D9:E23)","v":27},null,{"$f":"SUM(F9:H23)","v":53}]
["Региональный\n(национально-\nрегиональный) \nкомпонент","Родной язык",1,1,null,2]
[null,"Родная литература",1,1,null,2]
["Компонент \nобразовательного \nучреждения:\nучебные предметы","Русский язык",1,1,null,{"$f":"SUM(C27:E27)","v":2}]
[null,"Математика",1,1,null,{"$f":"SUM(C28:E28)","v":2}]
[null,"Физика",1,1,null,2]
[null,"Химия",1,1,null,{"$f":"SUM(C30:E30)","v":2}]
[null,"Биология",1,1,null,{"$f":"SUM(C31:E31)","v":2}]
[null,"Информатика и ИКТ",1,1,null,{"$f":"SUM(C32:E32)","v":2}]
[null,"Иностранный язык (английский)",1,null,null,1]
["Компонент \nобразовательного \nучреждения: элективные курсы","«Углубленное изучение некоторых вопросов математики»",1,null,null,{"$f":"SUM(C34:E34)","v":1}]
[null,"«Решение текстовых задач по \nматематике»",null,1,null,1]
[null,"«Азбука журналистики»",0.5,null,null,0.5]
[null,"«От текста - к творчеству»",0.5,null,null,0.5]
[null,"«Решение сложных и нестандартных задач по математике»",null,1,null,1]
["Предельно допустимая недельная нагрузка:",null,37,37,null,74]